bitfinex/quotes_SOLUSD_20260108
["timestamp","ask_amount","ask_price","bid_price","bid_amount"]
[1767884517662,7.47123185,133.85,133.81,0.71131371]
[1767884517853,0.66290293,133.85,133.79,0.71131371]
[1767884518055,9.80622987,133.85,133.8,9.85464065]
[1767884518255,7.47059397,133.86,133.83,0.71131371]
[1767884518460,7.47008365,133.87,133.83,0.71131371]
[1767884518658,19.37340164,133.9,133.84,9.85464065]
[1767884518857,19.37340164,133.9,133.86,9.14332694]
[1767884518858,17.31397049,133.9,133.86,9.14332694]
[1767884519065,9.14332694,133.89,133.85,0.71131371]
[1767884519263,9.80622987,133.89,133.84,23.49464065]
[1767884519459,16.6127025,133.88,133.83,9.14332694]
[1767884519760,9.14332694,133.86,133.82,14.35131371]
[1767884519978,9.80661922,133.87,133.82,23.49464065]
[1767884520154,0.66329228,133.87,133.82,23.49464065]
[1767884520371,9.14332694,133.83,133.78,0.71131371]
[1767884520573,9.14332694,133.82,133.78,0.71131371]
[1767884520754,9.14332694,133.8,133.76,14.35131371]
[1767884520963,9.14332694,133.8,133.76,0.71131371]
[1767884521281,9.80810068,133.79,133.73,0.71131371]
[1767884521456,9.14332694,133.76,133.73,13.64]
[1767884521654,16.6193233,133.77,133.73,13.64]
[1767884521854,16.6193233,133.77,133.74,9.85464065]
[1767884521855,7.47599636,133.77,133.74,9.85464065]
[1767884522273,7.47599636,133.77,133.73,9.14332694]
[1767884522560,7.47599636,133.77,133.74,0.6934271]
[1767884522860,7.47599636,133.77,133.72,9.83675404]
[1767884522861,35.98597591,133.77,133.72,9.83675404]
[1767884523067,26.84264897,133.77,133.72,14.3334271]
[1767884523365,9.14332694,133.76,133.72,14.3334271]
[1767884523577,16.6195941,133.76,133.72,14.3334271]
[1767884523754,7.47626716,133.76,133.72,23.47675404]
[1767884524159,17.29502691,133.8,133.75,9.14332694]
[1767884524789,9.82118536,133.79,133.74,9.14332694]
[1767884524995,9.82118536,133.79,133.73,0.6934271]
[1767884525198,7.47495888,133.78,133.74,9.14332694]
[1767884525681,9.84471507,133.77,133.72,13.64]
[1767884525877,0.70138813,133.77,133.72,30.92030042]
[1767884526088,7.47495888,133.78,133.74,9.14332694]
[1767884526278,17.31967395,133.78,133.73,9.14332694]
[1767884527264,7.47495888,133.78,133.74,9.80200886]
[1767884527668,7.47495888,133.78,133.73,7.47745095]
[1767884527669,7.47463262,133.79,133.75,9.80200886]
[1767884527870,8.17602075,133.79,133.74,9.14332694]
[1767884528171,7.47463262,133.79,133.75,9.14332694]
[1767884528370,0.70138813,133.78,133.73,7.47745095]
[1767884528585,16.61795956,133.79,133.74,23.44200886]
[1767884529092,7.47463262,133.79,133.75,9.14332694]
[1767884529462,9.14332694,133.78,133.74,14.29868192]
[1767884529661,9.14332694,133.78,133.74,13.64]
[1767884529861,9.84471507,133.77,133.73,13.64]
[1767884530061,26.15867158,133.8,133.69,37.3978822]
[1767884530062,0.70138813,133.75,133.7,8.13777957]
[1767884530280,0.70138813,133.75,133.71,22.78332694]
[1767884530491,0.70138813,133.73,133.71,13.64]
[1767884530695,0.70138813,133.76,133.69,8.138505]
[1767884530863,9.14332694,133.74,133.7,13.64]
[1767884531288,0.70138813,133.73,133.7,13.64]
[1767884531493,8.17922915,133.73,133.7,13.64]
[1767884531664,8.17922915,133.73,133.69,9.14332694]
[1767884531865,7.47784102,133.73,133.69,22.78332694]
[1767884532388,17.32213809,133.74,133.69,22.78332694]
[1767884532893,7.47681165,133.75,133.71,9.80200886]
[1767884533094,16.62013859,133.75,133.7,22.78332694]
[1767884533479,8.17819978,133.75,133.7,30.92123973]
[1767884533697,17.32152672,133.75,133.7,30.92123973]
[1767884533893,18.68955269,133.77,133.7,30.92123973]
[1767884533894,7.47574329,133.77,133.73,9.80200886]
[1767884534094,0.14216157,133.81,133.76,9.14332694]
[1767884534095,0.70138813,133.81,133.76,9.14332694]
[1767884534390,0.70138813,133.8,133.77,9.14332694]
[1767884534594,26.15258163,133.83,133.76,9.14332694]
[1767884534783,7.47216618,133.83,133.78,0.65868192]
[1767884534970,7.47216618,133.83,133.79,9.14332694]
[1767884535364,7.47216618,133.83,133.8,9.14332694]
[1767884535567,8.17307079,133.84,133.8,9.14332694]
[1767884535767,17.31639773,133.84,133.79,9.14332694]
[1767884535990,17.31639773,133.84,133.79,16.61763815]
[1767884536202,17.31639773,133.84,133.8,13.64]
[1767884536375,8.17307079,133.84,133.8,22.78332694]
[1767884536571,35.99541745,133.84,133.79,9.14332694]
[1767884536896,35.99541745,133.84,133.79,22.78332694]
[1767884537197,0.70138813,133.83,133.8,9.14332694]
[1767884537575,0.70138813,133.8,133.75,13.64]
[1767884537788,0.70138813,133.78,133.74,9.14332694]
[1767884537998,9.14332694,133.79,133.75,9.14332694]
[1767884538171,0.70138813,133.82,133.77,9.14332694]
[1767884538377,9.84471507,133.82,133.78,9.14332694]
[1767884538589,0.70138813,133.82,133.78,9.14332694]
[1767884538893,7.47172083,133.84,133.81,9.14332694]
[1767884539069,7.47172083,133.84,133.79,0.65868192]
[1767884539070,7.47172083,133.84,133.82,9.14332694]
[1767884539269,7.47172083,133.84,133.81,9.14332694]
[1767884539489,35.99338895,133.85,133.81,9.14332694]
[1767884540069,26.85006201,133.85,133.81,9.14332694]
[1767884540278,35.99338895,133.85,133.81,9.14332694]
[1767884540699,35.99338895,133.85,133.81,9.08332694]
[1767884540895,8.17243781,133.85,133.79,21.77269296]
[1767884541079,8.17243781,133.85,133.76,9.42765008]
[1767884541080,0.70138813,133.81,133.76,13.64]
[1767884541283,9.84471507,133.81,133.77,9.14332694]
[1767884541473,0.70138813,133.8,133.75,9.14332694]
[1767884541673,7.47440017,133.79,133.75,22.78332694]
[1767884541883,7.47440017,133.79,133.73,0.65868192]
[1767884542093,17.31911524,133.79,133.73,0.65868192]
[1767884542370,36.00511568,133.79,133.74,9.14332694]
[1767884542570,26.86178874,133.79,133.74,9.14332694]
[1767884542768,36.00511568,133.79,133.74,9.14332694]
[1767884543086,36.00511568,133.79,133.73,13.64]
[1767884543087,9.84471507,133.77,133.73,13.64]
[1767884543479,9.84471507,133.76,133.69,0.65868192]
[1767884543784,0.70138813,133.73,133.7,22.78332694]
[1767884543988,7.47719455,133.74,133.7,22.78332694]
[1767884544287,8.17858268,133.74,133.7,9.14332694]
[1767884544700,8.17858268,133.74,133.71,9.14332694]
[1767884545020,8.17858268,133.74,133.7,9.14332694]
[1767884545307,36.01489601,133.74,133.69,9.14332694]
[1767884545467,36.01489601,133.74,133.68,31.19851755]
[1767884545468,0.70138813,133.72,133.68,31.19851755]
[1767884545671,37.37957177,133.77,133.68,17.55851755]
[1767884545672,16.62219912,133.71,133.68,17.55851755]
[1767884545996,36.02076771,133.71,133.68,17.55851755]
[1767884546198,7.47851252,133.72,133.68,26.70184449]
[1767884546409,7.47851252,133.72,133.69,9.14332694]
[1767884546623,7.4778207,133.73,133.7,9.14332694]
[1767884547784,16.62052149,133.74,133.7,9.14332694]
[1767884547990,0.70138813,133.73,133.7,9.14332694]
[1767884549488,8.17821296,133.75,133.69,7.47952533]
[1767884549702,0.70138813,133.74,133.71,9.14332694]
[1767884549992,8.17821296,133.75,133.72,9.14332694]
[1767884550509,6.6801107,133.81,133.72,9.14332694]
[1767884550510,0.70138813,133.84,133.75,0.65868192]
[1767884550713,12.67096236,133.91,133.82,5.62325337]
[1767884550714,0.70138813,133.86,133.82,5.62325337]
[1767884550897,6.41323256,133.91,133.85,5.62325337]
[1767884550898,0.70138813,133.89,133.85,5.62325337]
[1767884551103,0.70138813,133.89,133.86,5.62325337]
[1767884551301,0.70138813,133.89,133.85,5.62325337]
[1767884551504,31.76216299,133.9,133.81,5.62325337]
[1767884551505,6.3246415,133.86,133.81,5.62325337]
[1767884551810,8.17348781,133.84,133.81,13.64]
[1767884552012,0.70138813,133.83,133.79,5.62325337]
[1767884552714,0.70138813,133.83,133.75,18.97533265]
[1767884552715,0.67709654,133.79,133.73,7.47735153]
[1767884552919,6.27034992,133.79,133.75,5.62325337]
[1767884553291,5.62325337,133.8,133.75,5.62325337]
[1767884553723,0.28432314,133.83,133.75,5.62325337]
[1767884553928,5.62325337,133.8,133.75,5.62325337]
[1767884554116,26.15453593,133.82,133.75,5.62325337]
[1767884554414,5.62325337,133.8,133.75,5.62325337]
[1767884555007,0.67709654,133.81,133.75,5.62325337]
[1767884555205,5.62325337,133.8,133.75,5.62325337]
[1767884555617,0.67709654,133.81,133.75,5.62325337]
[1767884555820,5.62325337,133.8,133.74,21.84041687]
[1767884556019,7.47440017,133.79,133.75,5.62325337]
[1767884556321,7.47440017,133.79,133.74,19.98660369]
[1767884556622,18.68218268,133.82,133.78,6.34660369]
[1767884556797,6.30034991,133.83,133.78,5.62325337]
[1767884557004,6.30034991,133.8,133.75,13.64]
[1767884557309,0.67709654,133.8,133.76,5.62325337]
[1767884557502,6.30034991,133.81,133.76,5.62325337]
[1767884557913,6.30034991,133.81,133.75,14.36335032]
[1767884557914,7.47412583,133.8,133.77,5.62325337]
[1767884558223,5.62325337,133.83,133.78,0.72335032]
[1767884558426,7.47204308,133.84,133.8,6.34660369]
[1767884558599,5.62325337,133.85,133.8,6.34660369]
[1767884560421,6.30034991,133.84,133.79,13.64]
[1767884560620,5.62325337,133.83,133.79,13.64]
[1767884560821,5.62325337,133.82,133.79,13.64]
[1767884561230,0.67709654,133.83,133.79,13.64]
[1767884561403,5.62325337,133.83,133.79,13.64]
[1767884561603,13.09575541,133.83,133.79,13.64]
[1767884561803,7.47250204,133.83,133.79,13.64]
[1767884562019,7.47177083,133.84,133.8,6.34660369]
[1767884562333,6.30034991,133.86,133.8,6.34660369]
[1767884562518,6.30034991,133.86,133.79,13.64]
[1767884562519,5.62325337,133.84,133.79,13.64]
[1767884562710,5.62325337,133.85,133.8,0.72335032]
[1767884562937,5.62325337,133.85,133.8,6.34660369]
[1767884563312,13.09374492,133.86,133.81,0.72335032]
[1767884563515,6.30034991,133.82,133.77,0.72335032]
[1767884563724,13.77351,133.82,133.77,0.72335032]
[1767884563929,6.30034991,133.81,133.76,13.64]
[1767884564116,6.30034991,133.81,133.76,0.72335032]
[1767884564510,5.62325337,133.8,133.76,0.72335032]
[1767884564831,6.30034991,133.81,133.76,0.72335032]
[1767884565326,0.67709654,133.79,133.75,13.64]
[1767884565503,5.62325337,133.77,133.72,19.98660369]
[1767884565699,7.47551767,133.77,133.73,0.72335032]
[1767884565903,13.77544857,133.78,133.73,6.34660369]
[1767884566103,13.77544857,133.78,133.73,0.72335032]
[1767884566300,13.09835203,133.78,133.73,0.72335032]
[1767884568140,5.62325337,133.77,133.73,0.72335032]
[1767884568513,6.30034991,133.76,133.72,13.64]
[1767884568720,7.47509866,133.78,133.72,19.98660369]
[1767884568931,5.62325337,133.78,133.72,27.46459167]
[1767884569117,5.62325337,133.77,133.72,21.8413383]
[1767884569318,26.16040061,133.79,133.72,27.46459167]
[1767884569833,5.62325337,133.77,133.72,27.46459167]
[1767884570139,13.0989016,133.77,133.72,21.8413383]
[1767884570315,13.0989016,133.77,133.72,14.36335032]
[1767884570512,7.47512983,133.78,133.74,0.72335032]
[1767884570934,6.30034991,133.77,133.72,14.36335032]
[1767884571231,5.62325337,133.76,133.72,14.36335032]
[1767884571615,5.62325337,133.76,133.72,13.64]
[1767884571809,6.30034991,133.76,133.72,13.64]
[1767884572011,5.62325337,133.74,133.69,5.62325337]
[1767884572314,5.62325337,133.74,133.69,19.26325337]
[1767884572622,13.10084597,133.74,133.69,19.98660369]
[1767884573025,13.77794251,133.74,133.69,13.64]
[1767884573233,0.67709654,133.73,133.69,19.26325337]
[1767884573538,7.4775926,133.74,133.69,27.46654158]
[1767884574042,7.4775926,133.74,133.69,19.98660369]
[1767884574342,6.30034991,133.73,133.69,13.64]
[1767884574642,13.77794251,133.74,133.69,19.98660369]
[1767884575342,8.15468914,133.74,133.69,19.98660369]
[1767884575521,7.4775926,133.74,133.7,6.34660369]
[1767884575723,19.36787174,133.76,133.71,6.34660369]
[1767884575724,0.67709654,133.76,133.71,6.34660369]
[1767884575924,0.67709654,133.76,133.72,5.62325337]
[1767884576238,8.15261421,133.77,133.72,6.34660369]
[1767884576616,6.30034991,133.76,133.71,6.42325337]
[1767884576817,26.16431186,133.77,133.68,17.55851755]
[1767884576818,0.67709654,133.72,133.68,17.55851755]
[1767884577119,6.30034991,133.72,133.68,17.55851755]
[1767884577337,5.62325337,133.72,133.68,25.76229951]
[1767884577550,6.30034991,133.73,133.68,18.28186787]
[1767884578046,6.30034991,133.73,133.68,25.7623978]
[1767884578225,5.62325337,133.74,133.69,8.20321401]
[1767884578646,8.15446572,133.74,133.69,8.20321401]
[1767884578829,7.47688808,133.75,133.7,6.34660369]
[1767884579030,13.77651947,133.76,133.71,6.34660369]
[1767884579245,8.1532661,133.76,133.71,0.72335032]
[1767884579450,8.1532661,133.76,133.71,6.34660369]
[1767884579827,13.77651947,133.76,133.71,6.34660369]
[1767884580019,6.30034991,133.75,133.7,13.64]
[1767884580220,0.67709654,133.71,133.68,17.55851755]
[1767884580549,6.30034991,133.71,133.68,17.55851755]
[1767884580748,5.62325337,133.7,133.68,17.55851755]
[1767884581047,0.47860944,133.68,133.62,0.72335032]
[1767884581245,5.62325337,133.66,133.62,0.72335032]
[1767884581418,0.47860944,133.68,133.62,0.72335032]
[1767884581625,5.62325337,133.67,133.62,0.72335032]
[1767884581930,5.62325337,133.66,133.62,8.20710473]
[1767884582155,7.95958922,133.68,133.62,8.20710473]
[1767884582327,5.62325337,133.66,133.62,8.20710473]
[1767884582939,5.62325337,133.67,133.62,13.8303581]
[1767884583537,7.48124303,133.67,133.62,8.20710473]
[1767884583737,13.1044964,133.67,133.62,13.8303581]
[1767884583925,13.1044964,133.67,133.62,0.72335032]
[1767884584133,13.1044964,133.67,133.62,6.34660369]
[1767884584526,7.95922135,133.68,133.63,0.70615257]
[1767884584747,5.62325337,133.69,133.65,0.70615257]
[1767884584942,0.67283563,133.7,133.65,0.70615257]
[1767884584943,5.62325337,133.68,133.65,0.70615257]
[1767884585128,0.66582998,133.64,133.61,0.2]
[1767884585327,0.56095782,133.64,133.61,0.2]
[1767884585528,5.62325337,133.65,133.61,0.87032208]
[1767884585735,13.10516634,133.66,133.62,0.67032208]
[1767884586032,5.62325337,133.65,133.61,0.2]
[1767884586472,7.48191297,133.66,133.61,0.87032208]
[1767884586629,5.62325337,133.65,133.61,0.87032208]
[1767884586828,5.62325337,133.64,133.61,0.87032208]
[1767884587131,5.62325337,133.62,133.61,0.2]
[1767884587326,5.62325337,133.63,133.61,0.2]
[1767884588371,7.48328092,133.64,133.61,0.2]
[1767884588662,5.62325337,133.64,133.61,0.2]
[1767884589162,5.62325337,133.63,133.61,0.2]
[1767884589340,13.106978,133.63,133.61,0.2]
[1767884589654,7.48300063,133.64,133.61,0.2]
[1767884589954,5.62325337,133.63,133.61,0.2]
[1767884590121,7.48300063,133.64,133.61,0.2]
[1767884590326,5.62325337,133.63,133.61,0.2]
[1767884590522,5.62325337,133.65,133.61,0.87032208]
[1767884590760,5.62325337,133.62,133.6,0.5181037]
[1767884591059,0.70023919,133.63,133.6,0.5181037]
[1767884591060,6.32349256,133.63,133.6,0.5181037]
[1767884591363,8.18399526,133.63,133.6,0.5181037]
[1767884591558,5.62325337,133.62,133.6,0.5181037]
[1767884591738,6.31952669,133.61,133.6,1e-08]
[1767884592251,5.62325337,133.62,133.6,1e-08]
[1767884592666,5.62325337,133.61,133.6,1e-08]
[1767884593326,13.10772309,133.61,133.6,1e-08]
[1767884593954,5.62325337,133.6,133.56,0.87032208]
[1767884594153,5.62325337,133.59,133.56,0.2]
[1767884594950,6.32349256,133.59,133.56,0.2]
[1767884595649,5.62325337,133.59,133.56,0.2]
[1767884595859,13.10884789,133.59,133.56,0.2]
[1767884596169,5.62325337,133.59,133.56,0.2]
[1767884597058,5.62325337,133.62,133.57,6.29357545]
[1767884597272,5.62325337,133.62,133.58,0.67032208]
[1767884597444,13.10722227,133.62,133.58,0.67032208]
[1767884597644,5.62325337,133.61,133.58,0.67032208]
[1767884597846,6.32349256,133.6,133.56,0.2]
[1767884598046,5.62325337,133.57,133.56,0.2]
[1767884598552,6.31952669,133.58,133.56,0.2]
[1767884598760,5.62325337,133.58,133.56,0.2]
[1767884599267,5.62325337,133.57,133.53,0.67032208]
[1767884599439,13.94432314,133.61,133.51,21.14984604]
[1767884599440,5.62325337,133.56,133.51,27.44342149]
[1767884599639,5.62325337,133.56,133.52,0.67032208]
[1767884599839,13.11032285,133.57,133.53,0.67032208]
[1767884600170,5.62325337,133.57,133.53,6.29357545]
[1767884600354,0.70695824,133.58,133.53,0.67032208]
[1767884600541,5.62325337,133.57,133.53,0.67032208]
[1767884600741,6.31817342,133.54,133.49,0.67032208]
[1767884601053,0.69492005,133.54,133.49,0.67032208]
[1767884601258,5.62325337,133.52,133.49,0.67032208]
[1767884601457,5.62325337,133.51,133.47,0.67032208]
[1767884602449,5.62325337,133.5,133.46,17.77456703]
[1767884602650,5.62325337,133.5,133.46,18.44488911]
[1767884602854,0.68908003,133.52,133.47,0.67032208]
[1767884603048,5.62325337,133.53,133.49,0.67032208]
[1767884603236,8.1955063,133.54,133.47,5.62325337]
[1767884603237,5.62325337,133.52,133.47,5.62325337]
[1767884603439,5.62325337,133.52,133.47,13.7853755]
[1767884603669,7.58806454,133.53,133.47,13.7853755]
[1767884603843,5.72225337,133.53,133.48,6.29357545]
[1767884604040,5.62325337,133.53,133.49,0.67032208]
[1767884604266,13.11187191,133.54,133.5,0.67032208]
[1767884605163,5.62325337,133.53,133.49,0.67032208]
[1767884605666,5.62325337,133.52,133.49,0.67032208]
[1767884606143,0.099,133.54,133.49,8.16138466]
[1767884606347,5.72225337,133.54,133.49,8.16138466]
[1767884606767,13.2106701,133.54,133.49,8.16138466]
[1767884606949,7.58741673,133.54,133.49,13.78463803]
[1767884607144,13.2106701,133.54,133.49,8.16138466]
[1767884607366,5.62325337,133.52,133.49,0.67032208]
[1767884607570,5.62325337,133.51,133.49,0.67032208]
[1767884607873,5.62325337,133.51,133.47,8.16230439]
[1767884608863,5.62325337,133.53,133.49,0.67032208]
[1767884609171,7.58698992,133.55,133.49,0.67032208]
[1767884609346,5.62325337,133.56,133.51,6.29357545]
[1767884609741,5.62325337,133.55,133.51,0.67032208]
[1767884609948,5.62325337,133.53,133.49,21.821271]
[1767884610164,5.62325337,133.52,133.49,21.821271]
[1767884610363,0.10501879,133.54,133.49,13.66]
[1767884610566,5.62325337,133.52,133.48,7.49157218]
[1767884610763,5.62325337,133.52,133.48,8.16189426]
[1767884610967,0.70695824,133.55,133.49,0.67032208]
[1767884611174,5.62325337,133.52,133.49,0.67032208]
[1767884611848,6.32413202,133.53,133.48,13.11478171]
[1767884612153,5.62325337,133.52,133.47,0.67032208]
[1767884612354,5.62325337,133.51,133.47,0.67032208]
[1767884612560,9.18230662,133.5,133.47,0.67032208]
[1767884612944,9.18230662,133.48,133.46,17.77456703]
[1767884613152,9.18230662,133.47,133.46,17.08430821]
[1767884613566,9.18230662,133.48,133.46,17.08430821]
[1767884613780,26.21722846,133.5,133.46,17.08430821]
[1767884613951,9.18230662,133.47,133.46,17.08430821]
[1767884614291,26.21722846,133.5,133.46,17.08430821]
[1767884614579,19.00740501,133.53,133.46,17.76466709]
[1767884614772,9.18230662,133.51,133.47,0.68035888]
[1767884615375,19.00740501,133.53,133.47,0.68035888]
[1767884615553,9.18230662,133.5,133.47,0.68035888]
[1767884615754,9.18230662,133.49,133.47,0.68035888]
[1767884616660,9.18230662,133.48,133.46,17.08430821]
[1767884616872,9.18230662,133.49,133.46,17.76466709]
[1767884617064,7.49031869,133.51,133.46,25.25746246]
[1767884617270,9.18230662,133.5,133.47,0.68035888]
[1767884617788,51.10196495,133.54,133.5,0.68035888]
[1767884617789,7.48877887,133.54,133.5,0.68035888]
[1767884618084,9.18230662,133.53,133.49,0.68035888]
[1767884619054,16.67108549,133.54,133.49,0.68035888]
[1767884619264,16.67108549,133.54,133.49,17.35378063]
[1767884619486,9.18230662,133.53,133.48,8.17188379]
[1767884619650,9.18230662,133.52,133.48,0.68035888]
[1767884620358,9.18230662,133.51,133.48,0.68035888]
[1767884620757,7.48815283,133.55,133.51,0.68035888]
[1767884620957,9.18230662,133.54,133.51,0.68035888]
[1767884621161,7.48815283,133.55,133.51,0.68035888]
[1767884621162,16.67045945,133.55,133.51,0.68035888]
[1767884622574,13.66,133.57,133.52,0.68035888]
[1767884622876,9.18230662,133.57,133.53,0.68035888]
[1767884623187,9.18230662,133.56,133.53,0.68035888]
[1767884624084,16.6696137,133.56,133.53,0.68035888]
[1767884624290,9.18230662,133.55,133.51,13.68]
[1767884624674,16.6696137,133.56,133.51,30.35225831]
[1767884625183,16.66917143,133.57,133.52,16.6716872]
[1767884625381,121.7143798,133.59,133.55,0.68035888]
[1767884625382,9.18230662,133.59,133.55,0.68035888]
[1767884625883,9.18230662,133.61,133.56,9.8626655]
[1767884626067,9.18230662,133.6,133.56,0.68035888]
[1767884626273,9.18230662,133.59,133.56,0.68035888]
[1767884626690,18.70894978,133.63,133.54,22.86230662]
[1767884626691,9.18230662,133.58,133.54,0.68035888]
[1767884626994,0.28432314,133.61,133.51,0.68035888]
[1767884627302,9.18230662,133.53,133.49,0.68035888]
[1767884627467,9.18230662,133.52,133.49,0.68035888]
[1767884627776,7.48900079,133.53,133.49,0.68035888]
[1767884627777,9.18230662,133.51,133.49,0.68035888]
[1767884628102,9.18230662,133.5,133.46,17.08430821]
[1767884628267,9.18230662,133.48,133.46,17.08430821]
[1767884628921,40.15570841,133.53,133.46,17.76466709]
[1767884629102,0.28432314,133.52,133.46,17.76466709]
[1767884629414,9.18230662,133.49,133.46,17.76466709]
[1767884629597,16.67352868,133.49,133.46,17.76466709]
[1767884629999,9.18230662,133.5,133.46,17.76466709]
[1767884631426,7.48951467,133.52,133.47,0.68035888]
[1767884631591,9.18230662,133.51,133.47,0.68035888]
[1767884631995,37.43568159,133.57,133.49,0.68035888]
[1767884631996,18.71846742,133.56,133.49,0.68035888]
[1767884632290,9.18230662,133.54,133.49,0.68035888]
[1767884632496,18.71846742,133.56,133.51,0.68035888]
[1767884632497,7.48727163,133.56,133.51,0.68035888]
[1767884632690,16.66957825,133.56,133.52,0.68035888]
[1767884632990,7.48692215,133.57,133.52,0.68035888]
[1767884633197,18.71340931,133.6,133.54,0.68035888]
[1767884633391,18.70697395,133.64,133.58,0.68035888]
[1767884633613,9.18230662,133.63,133.58,0.68035888]
[1767884633797,9.18230662,133.64,133.59,0.68035888]
[1767884633992,9.18230662,133.64,133.6,0.68035888]
[1767884634225,7.4822297,133.65,133.61,0.68035888]
[1767884634408,7.4822297,133.65,133.61,9.8626655]
[1767884634714,7.4822297,133.65,133.61,0.68035888]
[1767884635106,16.86404199,133.66,133.62,0.68035888]
[1767884635310,9.38230662,133.66,133.62,0.68035888]
[1767884635621,9.18230662,133.64,133.6,0.68035888]
[1767884635819,9.18230662,133.63,133.6,0.68035888]
[1767884636019,26.38611375,133.66,133.6,0.68035888]
[1767884636322,9.18230662,133.62,133.6,0.68035888]
[1767884636623,9.18230662,133.62,133.58,0.68035888]
[1767884637020,40.04611375,133.66,133.58,0.68035888]
[1767884637217,9.18230662,133.61,133.58,0.68035888]
[1767884637723,9.18230662,133.61,133.56,30.32938748]
[1767884637724,9.18230662,133.59,133.56,0.68035888]
[1767884638111,9.18230662,133.6,133.56,0.68035888]
[1767884638308,7.48467638,133.61,133.52,1.42931034]
[1767884638511,7.48467638,133.61,133.52,0.68035888]
[1767884638512,9.18230662,133.55,133.52,0.68035888]
[1767884638912,9.18230662,133.56,133.52,0.68035888]
[1767884639426,9.18230662,133.55,133.52,0.68035888]
[1767884640320,7.48800545,133.55,133.5,0.68035888]
[1767884640523,9.18230662,133.54,133.5,0.68035888]
[1767884640726,7.48800545,133.55,133.5,0.68035888]
[1767884640925,9.18230662,133.54,133.5,0.68035888]
[1767884641126,7.48800545,133.55,133.51,0.68035888]
[1767884641327,9.18230662,133.53,133.51,0.68035888]
[1767884641817,9.18230662,133.52,133.47,0.68035888]
[1767884642123,7.48936411,133.53,133.49,0.68035888]
[1767884642325,16.67167073,133.53,133.49,0.68035888]
[1767884642635,18.72028903,133.55,133.5,0.6599772]
[1767884642636,7.48822661,133.55,133.5,0.6599772]
[1767884642825,9.18230662,133.54,133.5,0.6599772]
[1767884643003,7.48739892,133.56,133.52,0.6599772]
[1767884643323,9.18230662,133.55,133.52,0.6599772]
[1767884643824,18.71629817,133.58,133.52,0.6599772]
[1767884644016,9.18230662,133.55,133.52,0.6599772]
[1767884644426,9.18230662,133.53,133.5,1.3599772]
[1767884644933,9.18230662,133.54,133.51,0.6599772]
[1767884645704,9.18230662,133.55,133.51,0.6599772]
[1767884646001,16.67069961,133.54,133.51,0.6599772]
[1767884646205,7.48839299,133.54,133.51,0.6599772]
[1767884646421,16.67069961,133.54,133.51,0.6599772]
[1767884647028,7.48839299,133.54,133.51,0.6599772]
[1767884647204,16.67069961,133.54,133.51,0.6599772]
[1767884647722,9.18230662,133.52,133.47,0.71633325]
[1767884647907,7.48987689,133.52,133.47,0.71633325]
[1767884648105,16.67218351,133.52,133.48,0.71633325]
[1767884648306,9.18230662,133.51,133.48,0.71633325]
[1767884648501,16.67218351,133.52,133.48,0.71633325]
[1767884648702,9.18230662,133.51,133.48,0.71633325]
[1767884649126,7.48987689,133.52,133.48,0.71633325]
[1767884649127,9.18230662,133.5,133.48,0.71633325]
[1767884649303,9.18230662,133.5,133.47,0.71633325]
[1767884649505,16.67218351,133.52,133.48,0.71633325]
[1767884649811,9.18230662,133.53,133.5,0.71633325]
[1767884650022,9.18230662,133.52,133.5,0.71633325]
[1767884650404,9.18230662,133.51,133.48,0.71633325]
[1767884650619,9.18230662,133.5,133.48,0.71633325]
[1767884650823,9.18230662,133.5,133.46,17.80064146]
[1767884651322,9.18230662,133.5,133.47,0.71633325]
[1767884651533,9.18230662,133.51,133.47,0.71633325]
[1767884651834,16.67238952,133.51,133.47,0.71633325]
[1767884652022,7.4900829,133.51,133.47,0.71633325]
[1767884652224,16.67238952,133.51,133.47,0.71633325]
[1767884652435,9.18230662,133.5,133.47,0.71633325]
[1767884652838,9.18230662,133.49,133.46,17.80064146]
[1767884653139,26.21527202,133.51,133.47,0.71633325]
[1767884653318,9.18230662,133.5,133.47,0.71633325]
[1767884653514,7.4900829,133.51,133.47,0.71633325]
[1767884653826,16.67196777,133.52,133.48,0.71633325]
[1767884654337,9.18230662,133.5,133.47,0.71633325]
[1767884654535,9.18230662,133.51,133.47,0.71633325]
[1767884655039,9.18230662,133.5,133.47,0.71633325]
[1767884655242,9.18230662,133.49,133.47,0.71633325]
[1767884655411,7.4890875,133.53,133.49,0.71633325]
[1767884655614,7.4890875,133.53,133.5,0.71633325]
[1767884655821,9.18230662,133.54,133.5,0.71633325]
[1767884656022,16.67110963,133.54,133.5,0.71633325]
[1767884656318,7.48735958,133.56,133.52,0.71633325]
[1767884656618,7.48735958,133.56,133.53,0.71633325]
[1767884656945,16.66918652,133.57,133.53,0.71633325]
[1767884657236,16.66807131,133.59,133.55,0.71633325]
[1767884657415,18.712864,133.6,133.56,0.71633325]
[1767884657416,9.18230662,133.6,133.56,0.71633325]
[1767884657818,9.18230662,133.61,133.56,9.89863987]
[1767884658018,7.48502994,133.6,133.57,0.71633325]
[1767884658226,7.48390959,133.62,133.58,0.71633325]
[1767884658621,16.66587163,133.63,133.58,0.71633325]
[1767884658821,7.48356501,133.63,133.57,0.71633325]